[Event "Titled Tuesday Blitz January 03 Early 2023"]
[White "Wilson, Elvin"]
[Black "Liu, Kelsey"]
[WhiteFideId "2014874"]
[BlackFideId "30944481"]
[WhiteElo "2183"]
[BlackElo "2065"]
[Result "0-1"]
[Round "07"]
[TimeControl "180+2"]
[Date "2023.01.03"]
[WhiteClock "0:00:03"]
[BlackClock "0:00:03"]

1. c4 {[%clk 0:03:00]}  Nf6 {[%clk 0:02:57]} 2. g3 {[%clk 0:02:59]}  e6 {[%clk 0:02:52]} 3. Bg2 {[%clk 0:02:59]}  d5 {[%clk 0:02:52]} 4. Nf3 {[%clk 0:02:57]}  d4 {[%clk 0:02:45]} 5. O-O {[%clk 0:02:53]}  c5 {[%clk 0:02:43]} 6. b4 {[%clk 0:02:51]}  cxb4 {[%clk 0:02:32]} 7. a3 {[%clk 0:02:50]}  bxa3 {[%clk 0:02:32]} 8. d3 {[%clk 0:02:49]}  Nc6 {[%clk 0:02:30]} 9. Nbd2 {[%clk 0:02:43]}  Be7 {[%clk 0:02:27]} 10. Bxa3 {[%clk 0:02:42]}  O-O {[%clk 0:02:26]} 11. Bxe7 {[%clk 0:02:42]}  Qxe7 {[%clk 0:02:24]} 12. Qb1 {[%clk 0:02:33]}  e5 {[%clk 0:02:12]} 13. Qb2 {[%clk 0:02:28]}  Rb8 {[%clk 0:02:07]} 14. Qa3 {[%clk 0:02:22]}  Qxa3 {[%clk 0:02:03]} 15. Rxa3 {[%clk 0:02:21]}  Bd7 {[%clk 0:01:58]} 16. Rb1 {[%clk 0:02:17]}  b6 {[%clk 0:01:51]} 17. Ng5 {[%clk 0:02:10]}  a5 {[%clk 0:01:49]} 18. Rb2 {[%clk 0:01:17]}  Nb4 {[%clk 0:01:38]} 19. Ngf3 {[%clk 0:01:17]}  Rfe8 {[%clk 0:01:37]} 20. Ne1 {[%clk 0:01:18]}  Bc6 {[%clk 0:01:23]} 21. Nc2 {[%clk 0:01:12]}  Nxc2 {[%clk 0:01:21]} 22. Rxc2 {[%clk 0:01:09]}  Bxg2 {[%clk 0:01:21]} 23. Kxg2 {[%clk 0:01:09]}  Nd7 {[%clk 0:01:10]} 24. Rb3 {[%clk 0:01:06]}  Nc5 {[%clk 0:01:09]} 25. Rb5 {[%clk 0:01:06]}  Re7 {[%clk 0:00:58]} 26. Rcb2 {[%clk 0:01:04]}  Reb7 {[%clk 0:00:58]} 27. f4 {[%clk 0:01:00]}  f6 {[%clk 0:00:58]} 28. fxe5 {[%clk 0:00:59]}  fxe5 {[%clk 0:00:58]} 29. Nf3 {[%clk 0:00:58]}  Na4 {[%clk 0:00:49]} 30. Rc2 {[%clk 0:00:46]}  Re7 {[%clk 0:00:21]} 31. Rxe5 {[%clk 0:00:43]}  Rxe5 {[%clk 0:00:20]} 32. Nxe5 {[%clk 0:00:43]}  Re8 {[%clk 0:00:21]} 33. Nf3 {[%clk 0:00:36]}  Rd8 {[%clk 0:00:15]} 34. Kf2 {[%clk 0:00:29]}  Nc5 {[%clk 0:00:15]} 35. Rb2 {[%clk 0:00:28]}  Rd6 {[%clk 0:00:15]} 36. Rb5 {[%clk 0:00:20]}  a4 {[%clk 0:00:14]} 37. Rb2 {[%clk 0:00:17]}  Kf7 {[%clk 0:00:15]} 38. Nd2 {[%clk 0:00:17]}  Ke6 {[%clk 0:00:12]} 39. Nb1 {[%clk 0:00:17]}  Rd8 {[%clk 0:00:11]} 40. Na3 {[%clk 0:00:18]}  Rf8+ {[%clk 0:00:11]} 41. Ke1 {[%clk 0:00:18]}  Ke5 {[%clk 0:00:08]} 42. Nb5 {[%clk 0:00:18]}  Rf6 {[%clk 0:00:07]} 43. Nc7 {[%clk 0:00:17]}  Rh6 {[%clk 0:00:07]} 44. Nd5 {[%clk 0:00:17]}  Rxh2 {[%clk 0:00:07]} 45. Rxb6 {[%clk 0:00:17]}  a3 {[%clk 0:00:05]} 46. Rb5 {[%clk 0:00:16]}  a2 {[%clk 0:00:04]} 47. Ra5 {[%clk 0:00:06]}  a1=Q+ {[%clk 0:00:05]} 48. Rxa1 {[%clk 0:00:06]}  Rh1+ {[%clk 0:00:05]} 49. Kd2 {[%clk 0:00:07]}  Rxa1 {[%clk 0:00:06]} 50. Nb4 {[%clk 0:00:07]}  Rh1 {[%clk 0:00:05]} 51. e3 {[%clk 0:00:05]}  dxe3+ {[%clk 0:00:05]} 52. Kxe3 {[%clk 0:00:06]}  Re1+ {[%clk 0:00:05]} 53. Kd2 {[%clk 0:00:05]}  Rg1 {[%clk 0:00:06]} 54. d4+ {[%clk 0:00:05]}  Kxd4 {[%clk 0:00:06]} 55. Nc6+ {[%clk 0:00:05]}  Kxc4 {[%clk 0:00:06]} 56. Ne5+ {[%clk 0:00:05]}  Kd4 {[%clk 0:00:06]} 57. Nf3+ {[%clk 0:00:05]}  Ke4 {[%clk 0:00:06]} 58. Nxg1 {[%clk 0:00:06]}  Kf5 {[%clk 0:00:06]} 59. Ke2 {[%clk 0:00:07]}  Kg4 {[%clk 0:00:07]} 60. Kf2 {[%clk 0:00:07]}  Ne4+ {[%clk 0:00:07]} 61. Kg2 {[%clk 0:00:07]}  Nxg3 {[%clk 0:00:08]} 62. Nf3 {[%clk 0:00:07]}  Nf5 {[%clk 0:00:05]} 63. Ne5+ {[%clk 0:00:07]}  Kf4 {[%clk 0:00:06]} 64. Nf7 {[%clk 0:00:07]}  g5 {[%clk 0:00:06]} 65. Kh3 {[%clk 0:00:06]}  h5 {[%clk 0:00:06]} 66. Nd8 {[%clk 0:00:04]}  g4+ {[%clk 0:00:06]} 67. Kg2 {[%clk 0:00:04]}  Nd4 {[%clk 0:00:04]} 68. Nf7 {[%clk 0:00:04]}  h4 {[%clk 0:00:04]} 69. Nh6 {[%clk 0:00:03]}  h3+ {[%clk 0:00:04]} 70. Kh2 {[%clk 0:00:03]}  Nf3+ {[%clk 0:00:04]} 71. Kh1 {[%clk 0:00:03]}  g3 {[%clk 0:00:03]} 0-1


[Site "https://www.chess.com"]

[Event "Titled Tuesday Blitz January 03 Early 2023"]
[White "Bashirli, Saadat"]
[Black "Lauridsen, Jesper Morch"]
[WhiteFideId "13429990"]
[BlackFideId "1401890"]
[WhiteElo "1571"]
[BlackElo "2309"]
[Result "1-0"]
[Round "07"]
[TimeControl "180+2"]
[Date "2023.01.03"]
[WhiteClock "0:00:03"]
[BlackClock "0:00:02"]

1. d4 {[%clk 0:03:00]}  d5 {[%clk 0:02:58]} 2. c4 {[%clk 0:02:59]}  e6 {[%clk 0:02:59]} 3. Nc3 {[%clk 0:02:59]}  c5 {[%clk 0:02:59]} 4. cxd5 {[%clk 0:02:57]}  exd5 {[%clk 0:02:59]} 5. Nf3 {[%clk 0:02:57]}  Nc6 {[%clk 0:03:00]} 6. g3 {[%clk 0:02:57]}  c4 {[%clk 0:03:00]} 7. Bg2 {[%clk 0:02:55]}  Bb4 {[%clk 0:03:01]} 8. O-O {[%clk 0:02:55]}  Nge7 {[%clk 0:03:01]} 9. Bg5 {[%clk 0:02:53]}  Be6 {[%clk 0:02:53]} 10. Qc2 {[%clk 0:02:53]}  h6 {[%clk 0:02:45]} 11. Bxe7 {[%clk 0:02:48]}  Qxe7 {[%clk 0:02:44]} 12. e4 {[%clk 0:02:48]}  Bxc3 {[%clk 0:02:39]} 13. bxc3 {[%clk 0:02:44]}  O-O {[%clk 0:02:29]} 14. exd5 {[%clk 0:02:40]}  Bxd5 {[%clk 0:02:28]} 15. Rfe1 {[%clk 0:02:39]}  Qf6 {[%clk 0:02:19]} 16. Ne5 {[%clk 0:02:39]}  Bxg2 {[%clk 0:02:03]} 17. Kxg2 {[%clk 0:02:37]}  Nxe5 {[%clk 0:01:50]} 18. Rxe5 {[%clk 0:02:35]}  Rfe8 {[%clk 0:01:40]} 19. Rae1 {[%clk 0:02:26]}  Rxe5 {[%clk 0:01:39]} 20. Rxe5 {[%clk 0:02:25]}  b5 {[%clk 0:01:33]} 21. Qe4 {[%clk 0:02:19]}  Rb8 {[%clk 0:01:05]} 22. Re8+ {[%clk 0:02:18]}  Rxe8 {[%clk 0:01:05]} 23. Qxe8+ {[%clk 0:02:14]}  Kh7 {[%clk 0:01:06]} 24. Qxb5 {[%clk 0:02:13]}  Qe6 {[%clk 0:01:05]} 25. Qb7 {[%clk 0:02:06]}  f5 {[%clk 0:00:56]} 26. Qf3 {[%clk 0:01:53]}  Kg6 {[%clk 0:00:49]} 27. d5 {[%clk 0:01:52]}  Qe5 {[%clk 0:00:32]} 28. h4 {[%clk 0:01:47]}  Kf6 {[%clk 0:00:29]} 29. a4 {[%clk 0:01:40]}  g6 {[%clk 0:00:19]} 30. a5 {[%clk 0:01:32]}  Qe4 {[%clk 0:00:19]} 31. Qxe4 {[%clk 0:01:29]}  fxe4 {[%clk 0:00:19]} 32. f3 {[%clk 0:01:29]}  exf3+ {[%clk 0:00:19]} 33. Kxf3 {[%clk 0:01:30]}  Ke5 {[%clk 0:00:19]} 34. d6 {[%clk 0:00:50]}  Kxd6 {[%clk 0:00:19]} 35. Ke4 {[%clk 0:00:51]}  Kc5 {[%clk 0:00:15]} 36. Ke5 {[%clk 0:00:47]}  Kb5 {[%clk 0:00:15]} 37. Kf6 {[%clk 0:00:46]}  Ka4 {[%clk 0:00:10]} 38. Kxg6 {[%clk 0:00:32]}  Kb3 {[%clk 0:00:11]} 39. Kxh6 {[%clk 0:00:33]}  Kxc3 {[%clk 0:00:11]} 40. Kg6 {[%clk 0:00:33]}  Kd2 {[%clk 0:00:09]} 41. h5 {[%clk 0:00:32]}  c3 {[%clk 0:00:10]} 42. h6 {[%clk 0:00:33]}  c2 {[%clk 0:00:10]} 43. h7 {[%clk 0:00:33]}  c1=Q {[%clk 0:00:10]} 44. h8=Q {[%clk 0:00:34]}  Qc2+ {[%clk 0:00:09]} 45. Kf7 {[%clk 0:00:13]}  Qc4+ {[%clk 0:00:09]} 46. Ke7 {[%clk 0:00:10]}  Qc5+ {[%clk 0:00:09]} 47. Kd7 {[%clk 0:00:09]}  Qd5+ {[%clk 0:00:09]} 48. Ke7 {[%clk 0:00:07]}  Qc5+ {[%clk 0:00:08]} 49. Ke6 {[%clk 0:00:07]}  Qxa5 {[%clk 0:00:06]} 50. Qd4+ {[%clk 0:00:06]}  Ke2 {[%clk 0:00:05]} 51. Qe4+ {[%clk 0:00:07]}  Kf2 {[%clk 0:00:04]} 52. Qf4+ {[%clk 0:00:06]}  Kg2 {[%clk 0:00:05]} 53. g4 {[%clk 0:00:05]}  Qb6+ {[%clk 0:00:05]} 54. Kf7 {[%clk 0:00:03]}  a5 {[%clk 0:00:04]} 55. g5 {[%clk 0:00:03]}  Qb7+ {[%clk 0:00:05]} 56. Kf6 {[%clk 0:00:03]}  Qc6+ {[%clk 0:00:05]} 57. Kf7 {[%clk 0:00:04]}  a4 {[%clk 0:00:05]} 58. g6 {[%clk 0:00:04]}  a3 {[%clk 0:00:06]} 59. g7 {[%clk 0:00:03]}  Qd7+ {[%clk 0:00:06]} 60. Kf8 {[%clk 0:00:03]}  a2 {[%clk 0:00:05]} 61. g8=Q+ {[%clk 0:00:03]}  Kh3 {[%clk 0:00:02]} 62. Qh6# {[%clk 0:00:03]} 1-0


[Site "https://www.chess.com"]

[Event "Titled Tuesday Blitz January 03 Early 2023"]
[White "Larina, Maria"]
[Black "Wieczorek, Zbigniew"]
[WhiteFideId "24113182"]
[BlackFideId "1102001"]
[WhiteElo "1948"]
[BlackElo "2150"]
[Result "0-1"]
[Round "07"]
[TimeControl "180+2"]
[Date "2023.01.03"]
[WhiteClock "0:00:11"]
[BlackClock "0:00:25"]

1. e4 {[%clk 0:02:57]}  g6 {[%clk 0:02:59]} 2. d4 {[%clk 0:02:57]}  Bg7 {[%clk 0:02:59]} 3. Nc3 {[%clk 0:02:57]}  c6 {[%clk 0:02:59]} 4. Nf3 {[%clk 0:02:53]}  d5 {[%clk 0:02:59]} 5. h3 {[%clk 0:02:49]}  dxe4 {[%clk 0:02:58]} 6. Nxe4 {[%clk 0:02:49]}  Bf5 {[%clk 0:02:58]} 7. Ng3 {[%clk 0:02:49]}  Be6 {[%clk 0:02:59]} 8. c3 {[%clk 0:02:44]}  Bd5 {[%clk 0:02:59]} 9. Be3 {[%clk 0:02:39]}  Nd7 {[%clk 0:02:58]} 10. Be2 {[%clk 0:02:37]}  e5 {[%clk 0:02:58]} 11. O-O {[%clk 0:02:28]}  exd4 {[%clk 0:02:54]} 12. Nxd4 {[%clk 0:02:16]}  f5 {[%clk 0:02:36]} 13. c4 {[%clk 0:02:11]}  Bf7 {[%clk 0:02:36]} 14. Ngxf5 {[%clk 0:02:00]}  gxf5 {[%clk 0:02:36]} 15. Nxf5 {[%clk 0:02:01]}  Be5 {[%clk 0:02:29]} 16. f4 {[%clk 0:01:55]}  Bc7 {[%clk 0:02:27]} 17. Ng7+ {[%clk 0:01:39]}  Kf8 {[%clk 0:02:26]} 18. Nf5 {[%clk 0:01:24]}  Ne7 {[%clk 0:02:18]} 19. Qd4 {[%clk 0:01:13]}  Rg8 {[%clk 0:02:15]} 20. Nh6 {[%clk 0:01:07]}  Bb6 {[%clk 0:02:00]} 21. Qe4 {[%clk 0:00:54]}  Nf6 {[%clk 0:01:54]} 22. Qf3 {[%clk 0:00:50]}  Rg6 {[%clk 0:01:43]} 23. Nxf7 {[%clk 0:00:49]}  Bxe3+ {[%clk 0:01:37]} 24. Qxe3 {[%clk 0:00:50]}  Nf5 {[%clk 0:01:06]} 25. Qc5+ {[%clk 0:00:45]}  Kxf7 {[%clk 0:00:56]} 26. Qxf5 {[%clk 0:00:44]}  Qb6+ {[%clk 0:00:56]} 27. c5 {[%clk 0:00:42]}  Qxb2 {[%clk 0:00:55]} 28. Bc4+ {[%clk 0:00:41]}  Kg7 {[%clk 0:00:54]} 29. g4 {[%clk 0:00:25]}  Qd4+ {[%clk 0:00:52]} 30. Rf2 {[%clk 0:00:23]}  Qxa1+ {[%clk 0:00:51]} 31. Kh2 {[%clk 0:00:23]}  Qd4 {[%clk 0:00:51]} 32. Rc2 {[%clk 0:00:23]}  Rf8 {[%clk 0:00:47]} 33. Bb3 {[%clk 0:00:16]}  Nd5 {[%clk 0:00:43]} 34. Qd7+ {[%clk 0:00:15]}  Rf7 {[%clk 0:00:43]} 35. Qe8 {[%clk 0:00:13]}  Qxf4+ {[%clk 0:00:42]} 36. Kg2 {[%clk 0:00:12]}  Ne3+ {[%clk 0:00:37]} 37. Kh1 {[%clk 0:00:13]}  Qf3+ {[%clk 0:00:31]} 38. Kh2 {[%clk 0:00:11]}  Nxg4+ {[%clk 0:00:25]} 39. hxg4 {[%clk 0:00:11]}  Rh6+ {[%clk 0:00:25]} 0-1


[Site "https://www.chess.com"]

[Event "Titled Tuesday Blitz January 03 Early 2023"]
[White "Thiel, Thomas"]
[Black "Eisa Mohmood, Alkhoori"]
[WhiteFideId "4615964"]
[BlackFideId "9316116"]
[WhiteElo "2234"]
[BlackElo "1095"]
[Result "0-1"]
[Round "07"]
[TimeControl "180+2"]
[Date "2023.01.03"]
[WhiteClock "0:00:27"]
[BlackClock "0:00:05"]

1. e4 {[%clk 0:03:00]}  c5 {[%clk 0:02:58]} 2. Nc3 {[%clk 0:02:59]}  d6 {[%clk 0:02:52]} 3. f4 {[%clk 0:02:57]}  g6 {[%clk 0:02:52]} 4. Nf3 {[%clk 0:02:56]}  Bg7 {[%clk 0:02:52]} 5. Bc4 {[%clk 0:02:56]}  e6 {[%clk 0:02:52]} 6. O-O {[%clk 0:02:55]}  Ne7 {[%clk 0:02:53]} 7. d3 {[%clk 0:02:53]}  O-O {[%clk 0:02:50]} 8. d4 {[%clk 0:02:52]}  cxd4 {[%clk 0:02:43]} 9. Nxd4 {[%clk 0:02:53]}  Nbc6 {[%clk 0:02:44]} 10. Ndb5 {[%clk 0:02:49]}  Qb6+ {[%clk 0:02:19]} 11. Kh1 {[%clk 0:02:46]}  d5 {[%clk 0:02:16]} 12. exd5 {[%clk 0:02:45]}  exd5 {[%clk 0:02:16]} 13. Nxd5 {[%clk 0:02:45]}  Nxd5 {[%clk 0:02:16]} 14. Qxd5 {[%clk 0:02:29]}  Be6 {[%clk 0:02:16]} 15. Qd3 {[%clk 0:02:29]}  Rfd8 {[%clk 0:01:36]} 16. Qe2 {[%clk 0:02:24]}  Bxc4 {[%clk 0:01:33]} 17. Qxc4 {[%clk 0:02:23]}  Na5 {[%clk 0:01:33]} 18. Qa4 {[%clk 0:02:20]}  Rac8 {[%clk 0:01:24]} 19. c3 {[%clk 0:02:09]}  Rc4 {[%clk 0:01:23]} 20. b4 {[%clk 0:02:05]}  Nc6 {[%clk 0:01:17]} 21. Bb2 {[%clk 0:01:48]}  Rd2 {[%clk 0:01:05]} 22. Bc1 {[%clk 0:01:45]}  Re2 {[%clk 0:00:58]} 23. Qd1 {[%clk 0:01:39]}  Rce4 {[%clk 0:00:43]} 24. a4 {[%clk 0:01:34]}  Nxb4 {[%clk 0:00:38]} 25. Rb1 {[%clk 0:00:40]}  Na2 {[%clk 0:00:38]} 26. Nd6 {[%clk 0:00:29]}  Qxb1 {[%clk 0:00:12]} 27. Nxe4 {[%clk 0:00:28]}  Qxe4 {[%clk 0:00:06]} 28. Qd8+ {[%clk 0:00:27]}  Qe8 {[%clk 0:00:07]} 29. Qd5 {[%clk 0:00:27]}  Nxc1 {[%clk 0:00:05]} 0-1


[Site "https://www.chess.com"]

[Event "Titled Tuesday Blitz January 03 Early 2023"]
[White "Ezat, Mohamed"]
[Black "Osiecki, Stanislaw"]
[WhiteFideId "10600906"]
[BlackFideId "1102990"]
[WhiteElo "2402"]
[BlackElo "2055"]
[Result "1-0"]
[Round "07"]
[TimeControl "180+2"]
[Date "2023.01.03"]
[WhiteClock "0:00:25"]
[BlackClock "0:00:12"]

1. d4 {[%clk 0:03:00]}  Nf6 {[%clk 0:02:57]} 2. c4 {[%clk 0:02:58]}  g6 {[%clk 0:02:55]} 3. Nc3 {[%clk 0:02:58]}  Bg7 {[%clk 0:02:51]} 4. e4 {[%clk 0:02:57]}  d6 {[%clk 0:02:51]} 5. Be2 {[%clk 0:02:57]}  O-O {[%clk 0:02:52]} 6. Bg5 {[%clk 0:02:57]}  c5 {[%clk 0:02:49]} 7. d5 {[%clk 0:02:56]}  Nbd7 {[%clk 0:02:45]} 8. Qd2 {[%clk 0:02:55]}  a6 {[%clk 0:02:43]} 9. a4 {[%clk 0:02:54]}  Re8 {[%clk 0:02:39]} 10. Nf3 {[%clk 0:02:52]}  Ne5 {[%clk 0:02:39]} 11. Nxe5 {[%clk 0:02:49]}  dxe5 {[%clk 0:02:39]} 12. O-O {[%clk 0:02:50]}  Bd7 {[%clk 0:02:34]} 13. Be3 {[%clk 0:02:15]}  Qc7 {[%clk 0:02:29]} 14. Rab1 {[%clk 0:02:06]}  Ng4 {[%clk 0:02:28]} 15. Bxg4 {[%clk 0:02:05]}  Bxg4 {[%clk 0:02:27]} 16. f3 {[%clk 0:02:03]}  Bd7 {[%clk 0:02:27]} 17. Qf2 {[%clk 0:02:03]}  Rec8 {[%clk 0:02:23]} 18. b3 {[%clk 0:02:02]}  Qa5 {[%clk 0:02:15]} 19. Rfc1 {[%clk 0:01:58]}  f5 {[%clk 0:02:10]} 20. Qh4 {[%clk 0:01:50]}  Qd8 {[%clk 0:02:07]} 21. Bg5 {[%clk 0:01:49]}  Bf6 {[%clk 0:02:03]} 22. Rd1 {[%clk 0:01:33]}  Bxg5 {[%clk 0:01:52]} 23. Qxg5 {[%clk 0:01:32]}  e6 {[%clk 0:01:50]} 24. Qg3 {[%clk 0:01:32]}  f4 {[%clk 0:01:47]} 25. Qf2 {[%clk 0:01:30]}  Qe7 {[%clk 0:01:37]} 26. dxe6 {[%clk 0:01:21]}  Bxe6 {[%clk 0:01:36]} 27. Nd5 {[%clk 0:01:21]}  Bxd5 {[%clk 0:01:35]} 28. Rxd5 {[%clk 0:01:21]}  Rc7 {[%clk 0:01:30]} 29. Rbd1 {[%clk 0:01:19]}  Rb8 {[%clk 0:01:11]} 30. Qb2 {[%clk 0:01:16]}  Re8 {[%clk 0:01:08]} 31. Rd6 {[%clk 0:01:15]}  Rb8 {[%clk 0:00:47]} 32. R1d5 {[%clk 0:01:07]}  b5 {[%clk 0:00:37]} 33. cxb5 {[%clk 0:00:58]}  axb5 {[%clk 0:00:37]} 34. a5 {[%clk 0:00:58]}  Re8 {[%clk 0:00:21]} 35. a6 {[%clk 0:00:55]}  Kf7 {[%clk 0:00:13]} 36. Qc3 {[%clk 0:00:26]}  c4 {[%clk 0:00:12]} 37. b4 {[%clk 0:00:25]} 1-0


[Site "https://www.chess.com"]

[Event "Titled Tuesday Blitz January 03 Early 2023"]
[White "Lakshmi C"]
[Black "Martin Carmona, Gaston Manuel"]
[WhiteFideId "25035347"]
[BlackFideId "22284567"]
[WhiteElo "1928"]
[BlackElo "2333"]
[Result "1-0"]
[Round "07"]
[TimeControl "180+2"]
[Date "2023.01.03"]
[WhiteClock "0:00:22"]
[BlackClock "0:01:49"]

1. Nf3 {[%clk 0:02:55]}  Nf6 {[%clk 0:02:59]} 2. g3 {[%clk 0:02:54]}  g6 {[%clk 0:02:59]} 3. Bg2 {[%clk 0:02:54]}  Bg7 {[%clk 0:03:00]} 4. O-O {[%clk 0:02:55]}  c5 {[%clk 0:03:01]} 5. d3 {[%clk 0:02:54]}  O-O {[%clk 0:03:02]} 6. e4 {[%clk 0:02:54]}  d6 {[%clk 0:03:02]} 7. h3 {[%clk 0:02:49]}  Nc6 {[%clk 0:03:02]} 8. c3 {[%clk 0:02:49]}  Rb8 {[%clk 0:03:03]} 9. a4 {[%clk 0:02:48]}  Bd7 {[%clk 0:03:03]} 10. Be3 {[%clk 0:02:45]}  a6 {[%clk 0:03:03]} 11. Nbd2 {[%clk 0:02:44]}  b5 {[%clk 0:03:02]} 12. axb5 {[%clk 0:02:41]}  axb5 {[%clk 0:03:03]} 13. d4 {[%clk 0:02:42]}  cxd4 {[%clk 0:03:00]} 14. cxd4 {[%clk 0:02:41]}  Qc8 {[%clk 0:02:54]} 15. Rc1 {[%clk 0:02:32]}  Qb7 {[%clk 0:02:48]} 16. e5 {[%clk 0:02:24]}  Nd5 {[%clk 0:02:47]} 17. Ng5 {[%clk 0:02:16]}  Nxe3 {[%clk 0:02:43]} 18. fxe3 {[%clk 0:02:15]}  dxe5 {[%clk 0:02:44]} 19. d5 {[%clk 0:02:09]}  Nb4 {[%clk 0:02:38]} 20. d6 {[%clk 0:02:04]}  Qb6 {[%clk 0:02:38]} 21. dxe7 {[%clk 0:01:42]}  Qxe3+ {[%clk 0:02:38]} 22. Kh1 {[%clk 0:01:41]}  Qxg5 {[%clk 0:02:39]} 23. exf8=Q+ {[%clk 0:01:40]}  Rxf8 {[%clk 0:02:38]} 24. Ne4 {[%clk 0:01:39]}  Qe7 {[%clk 0:02:35]} 25. Rc7 {[%clk 0:01:36]}  Rd8 {[%clk 0:02:30]} 26. Nc5 {[%clk 0:01:32]}  Bg4 {[%clk 0:02:14]} 27. Rxe7 {[%clk 0:01:17]}  Bxd1 {[%clk 0:02:13]} 28. Nb7 {[%clk 0:01:01]}  Rd2 {[%clk 0:01:50]} 29. Rfxf7 {[%clk 0:00:45]}  Bf8 {[%clk 0:01:50]} 30. Rc7 {[%clk 0:00:38]}  Na6 {[%clk 0:01:49]} 31. Rcd7 {[%clk 0:00:30]}  Rxb2 {[%clk 0:01:49]} 32. Bd5 {[%clk 0:00:22]} 1-0


[Site "https://www.chess.com"]

[Event "Titled Tuesday Blitz January 03 Early 2023"]
[White "Kuchava, Ana"]
[Black "Gavilan Diaz, Mario"]
[WhiteFideId "13605348"]
[BlackFideId "2260905"]
[WhiteElo "2101"]
[BlackElo "2271"]
[Result "0-1"]
[Round "07"]
[TimeControl "180+2"]
[Date "2023.01.03"]
[WhiteClock "0:00:03"]
[BlackClock "0:00:52"]

1. d4 {[%clk 0:03:00]}  Nf6 {[%clk 0:02:59]} 2. Nf3 {[%clk 0:02:59]}  c5 {[%clk 0:02:59]} 3. d5 {[%clk 0:02:59]}  e6 {[%clk 0:02:59]} 4. c4 {[%clk 0:02:57]}  exd5 {[%clk 0:03:00]} 5. cxd5 {[%clk 0:02:58]}  d6 {[%clk 0:03:00]} 6. Nc3 {[%clk 0:02:58]}  g6 {[%clk 0:03:01]} 7. e4 {[%clk 0:02:57]}  Bg7 {[%clk 0:03:01]} 8. Bd3 {[%clk 0:02:56]}  O-O {[%clk 0:03:02]} 9. O-O {[%clk 0:02:55]}  Bg4 {[%clk 0:03:01]} 10. a4 {[%clk 0:02:51]}  Nbd7 {[%clk 0:02:57]} 11. h3 {[%clk 0:02:51]}  Bxf3 {[%clk 0:02:56]} 12. Qxf3 {[%clk 0:02:52]}  Ne5 {[%clk 0:02:57]} 13. Qd1 {[%clk 0:02:53]}  Nxd3 {[%clk 0:02:52]} 14. Qxd3 {[%clk 0:02:52]}  Re8 {[%clk 0:02:52]} 15. Bf4 {[%clk 0:02:48]}  a6 {[%clk 0:02:47]} 16. Rfe1 {[%clk 0:02:43]}  Qe7 {[%clk 0:02:31]} 17. Bg5 {[%clk 0:01:35]}  h6 {[%clk 0:02:26]} 18. Bh4 {[%clk 0:01:33]}  g5 {[%clk 0:02:25]} 19. Bg3 {[%clk 0:01:33]}  Nd7 {[%clk 0:02:26]} 20. Kh2 {[%clk 0:01:24]}  Ne5 {[%clk 0:02:02]} 21. Qc2 {[%clk 0:01:20]}  Ng6 {[%clk 0:01:56]} 22. Re2 {[%clk 0:01:09]}  Rab8 {[%clk 0:01:56]} 23. a5 {[%clk 0:01:07]}  b5 {[%clk 0:01:56]} 24. axb6 {[%clk 0:01:07]}  Rxb6 {[%clk 0:01:57]} 25. Qd3 {[%clk 0:01:04]}  Qb7 {[%clk 0:01:47]} 26. Na4 {[%clk 0:00:49]}  Rb3 {[%clk 0:01:46]} 27. Qc2 {[%clk 0:00:46]}  Be5 {[%clk 0:01:41]} 28. Ra2 {[%clk 0:00:41]}  h5 {[%clk 0:01:27]} 29. Bxe5 {[%clk 0:00:37]}  Nxe5 {[%clk 0:01:26]} 30. Nc3 {[%clk 0:00:32]}  c4 {[%clk 0:01:17]} 31. Qd2 {[%clk 0:00:23]}  f6 {[%clk 0:01:17]} 32. Re3 {[%clk 0:00:20]}  h4 {[%clk 0:01:12]} 33. Ne2 {[%clk 0:00:13]}  Rb8 {[%clk 0:01:06]} 34. Rxb3 {[%clk 0:00:06]}  cxb3 {[%clk 0:01:06]} 35. Ra3 {[%clk 0:00:06]}  Nc4 {[%clk 0:01:05]} 36. Qd4 {[%clk 0:00:04]}  Nxa3 {[%clk 0:01:04]} 37. bxa3 {[%clk 0:00:05]}  Qe7 {[%clk 0:00:56]} 38. Nc3 {[%clk 0:00:03]}  b2 {[%clk 0:00:52]} 39. Nb1 {[%clk 0:00:02]}  Qe5+ {[%clk 0:00:51]} 40. Qxe5 {[%clk 0:00:03]}  fxe5 {[%clk 0:00:52]} 41. Kg1 {[%clk 0:00:03]}  Rc8 {[%clk 0:00:52]} 0-1


[Site "https://www.chess.com"]

[Event "Titled Tuesday Blitz January 03 Early 2023"]
[White "Vasques, Antonio Pedro Freixial"]
[Black "Palacio,Igor Da Paz"]
[WhiteFideId "1908332"]
[BlackFideId "2121140"]
[WhiteElo "2214"]
[BlackElo "2172"]
[Result "1-0"]
[Round "07"]
[TimeControl "180+2"]
[Date "2023.01.03"]
[WhiteClock "0:01:02"]
[BlackClock "0:00:39"]

1. Nf3 {[%clk 0:03:00]}  Nf6 {[%clk 0:02:57]} 2. c4 {[%clk 0:03:00]}  g6 {[%clk 0:02:58]} 3. d4 {[%clk 0:03:00]}  Bg7 {[%clk 0:02:58]} 4. Nc3 {[%clk 0:03:00]}  d6 {[%clk 0:02:58]} 5. e4 {[%clk 0:02:52]}  O-O {[%clk 0:02:57]} 6. Be2 {[%clk 0:02:50]}  c5 {[%clk 0:02:53]} 7. O-O {[%clk 0:02:45]}  Na6 {[%clk 0:02:47]} 8. Bg5 {[%clk 0:02:34]}  h6 {[%clk 0:02:39]} 9. Be3 {[%clk 0:02:32]}  b6 {[%clk 0:02:29]} 10. d5 {[%clk 0:02:22]}  Nc7 {[%clk 0:02:09]} 11. a4 {[%clk 0:02:14]}  Kh7 {[%clk 0:01:48]} 12. Nd2 {[%clk 0:02:10]}  e6 {[%clk 0:01:45]} 13. Qc2 {[%clk 0:02:05]}  e5 {[%clk 0:01:38]} 14. f4 {[%clk 0:01:54]}  exf4 {[%clk 0:01:30]} 15. Bxf4 {[%clk 0:01:55]}  Ng4 {[%clk 0:01:29]} 16. Bxg4 {[%clk 0:01:34]}  Bxg4 {[%clk 0:01:29]} 17. Rae1 {[%clk 0:01:33]}  Qe7 {[%clk 0:01:23]} 18. Qd3 {[%clk 0:01:28]}  Be5 {[%clk 0:01:06]} 19. Qg3 {[%clk 0:01:17]}  Bxf4 {[%clk 0:01:00]} 20. Qxf4 {[%clk 0:01:15]}  Bd7 {[%clk 0:00:53]} 21. e5 {[%clk 0:01:12]}  dxe5 {[%clk 0:00:47]} 22. Rxe5 {[%clk 0:01:05]}  Qd6 {[%clk 0:00:39]} 23. Nde4 {[%clk 0:01:02]} 1-0


[Site "https://www.chess.com"]